lending/lending_fUSD_20251106
["ID","MTS","AMOUNT","RATE_DAILY","PERIOD"]
[393308900,1762446640899,-1000.0,0.00017721,2]
[393308901,1762446640909,-1000.0,0.00017721,2]
[393308902,1762446640918,-1000.0,0.00017721,2]
[393308903,1762446640928,-1000.0,0.00017721,2]
[393308904,1762446640938,-1000.0,0.00017721,2]
[393308905,1762446640947,-1000.0,0.00017721,2]
[393308906,1762446640957,-1000.0,0.00017721,2]
[393308907,1762446640966,-1680.0,0.00017795,2]
[393308908,1762446640975,-19820.61287792,0.000178,2]
[393308909,1762446640985,-302.31018515,0.00017802,2]
[393308910,1762446640995,-848.5,0.00017808,2]
[393308911,1762446641005,-6756.69543,0.0001782,2]
[393308912,1762446641015,-200.0,0.00017856,2]
[393308913,1762446641024,-302.31018515,0.000179,2]
[393308914,1762446641033,-174.36793026,0.000179,2]
[393308915,1762446641042,-325.03961076,0.000179,2]
[393308916,1762446641051,-2456.0,0.00017919,2]
[393308917,1762446641060,-1596.0,0.00017951,2]
[393308918,1762446641070,-820.0,0.00017951,2]
[393308919,1762446641079,-812.0,0.00017951,2]
[393308920,1762446641090,-1273.0,0.00017951,2]
[393308921,1762446641101,-1188.0,0.00017951,2]
[393308922,1762446641112,-905.0,0.00017951,2]
[393308923,1762446641121,-3423.0,0.00017951,2]
[393308924,1762446641130,-574.0,0.00017951,2]
[393308925,1762446641140,-2141.0,0.00017951,2]
[393308926,1762446641150,-6658.0,0.00017951,2]
[393308927,1762446641159,-500.74497787,0.00017973,2]
[393308928,1762446641168,-503.54833867,0.00017973,2]
[393308929,1762446641178,-620.64256179,0.00017973,2]
[393308930,1762446641187,-500.0,0.00017973,2]
[393308931,1762446641196,-501.63643931,0.00017973,2]
[393308932,1762446641205,-500.0,0.00017973,2]
[393308933,1762446641215,-500.32689102,0.00017973,2]
[393308934,1762446641224,-500.0,0.00017973,2]
[393308935,1762446641233,-569.98024402,0.00017973,2]
[393308936,1762446641243,-198.02912071,0.00017973,2]
[393308937,1762446641254,-231.42602229,0.00017973,2]
[393308938,1762446641263,-500.0,0.00017973,2]
[393308939,1762446641273,-500.0,0.00017973,2]
[393308940,1762446641283,-500.0,0.00017973,2]
[393308941,1762446641292,-500.0,0.00017973,2]
[393308942,1762446641301,-500.0,0.00017973,2]
[393308943,1762446641311,-500.0,0.00017973,2]
[393308944,1762446641320,-500.0,0.00017973,2]
[393308945,1762446641329,-351.16553114,0.00017973,2]
[393308946,1762446641339,-500.0,0.00017973,2]
[393308947,1762446641349,-500.0,0.00017973,2]
[393308948,1762446641359,-500.0,0.00017973,2]
[393308949,1762446641368,-514.51741513,0.00017973,2]
[393308950,1762446641378,-500.0,0.00017973,2]
[393308951,1762446641388,-500.0,0.00017973,2]
[393308952,1762446641397,-500.0,0.00017973,2]
[393308953,1762446641407,-2456.0,0.00017974,2]
[393308954,1762446641417,-258.01898614,0.0001799,2]
[393308955,1762446641426,-258.01898614,0.0001799,2]
[393308956,1762446641437,-258.01898614,0.0001799,2]
[393308957,1762446641448,-212.916,0.00017999,2]
[393308958,1762446641459,-500.0,0.00017999,2]
[393308959,1762446641469,-399.17554175,0.00017999,2]
[393308960,1762446641479,-2657.0,0.00018,2]
[393308961,1762446641490,-139702.47025526,0.00018,2]
[393308962,1762446641503,-1438.13285037,0.00018,2]
[393308963,1762446641515,-2184.2505074,0.00018,2]
[393308979,1762446643367,-843.72277428,0.00017022,2]
[393308980,1762446643684,-1845.22673869,0.00017022,2]
[393308997,1762446646427,-23224.4022472,0.00017022,2]
[393308998,1762446646482,-985.01000029,0.00017022,2]
[393308999,1762446646541,-712.682,0.00017022,2]
[393309000,1762446646553,-789.87069389,0.00017022,2]
[393309001,1762446646756,-788.96860163,0.00017022,2]
[393309002,1762446646767,-455.0,0.00017022,2]
[393309003,1762446647134,-2520.19829599,0.00017022,2]
[393309004,1762446693277,150.0,0.00038483,120]
[393309005,1762446713344,156.02,0.00038483,30]
[393309006,1762446714136,500.0,0.00038483,120]
[393309007,1762446714732,500.0,0.00038483,120]
[393309008,1762446715143,500.0,0.00038483,120]
[393309009,1762446715536,500.0,0.00038483,120]
[393309010,1762446715921,500.0,0.00038483,120]
[393309011,1762446716305,500.0,0.00038483,120]
[393309012,1762446716691,500.0,0.00038483,120]
[393309013,1762446717081,500.0,0.00038483,120]
[393309014,1762446717466,500.0,0.00038483,120]
[393309015,1762446717855,500.0,0.00038483,120]
[393309016,1762446718272,500.0,0.00038483,120]
[393309017,1762446718658,500.0,0.00038483,120]
[393309018,1762446719083,500.0,0.00038483,120]
[393309019,1762446719493,500.0,0.00038483,120]
[393309020,1762446719880,500.0,0.00038483,120]
[393309021,1762446720258,533.77013606,0.00038483,120]
[393309022,1762446793044,500.0,0.00038483,120]
[393309023,1762446793488,500.0,0.00038483,120]
[393309024,1762446793880,500.0,0.00038483,120]
[393309025,1762446794247,500.0,0.00038483,120]
[393309026,1762446794627,500.0,0.00038483,120]
[393309027,1762446795803,500.0,0.00038483,120]
[393309028,1762446795850,500.0,0.00038483,120]
[393309029,1762446795908,500.0,0.00038483,120]
[393309030,1762446796223,500.0,0.00038483,120]
[393309031,1762446796596,500.0,0.00038483,120]
[393309032,1762446796980,292.30944075,0.00038483,120]
[393309033,1762446848751,500.0,0.00038772,120]
[393309034,1762446849135,500.0,0.00038772,120]
[393309035,1762446849526,500.0,0.00038772,120]
[393309036,1762446849899,500.0,0.00038772,120]
[393309037,1762446850318,500.0,0.00038772,120]
[393309038,1762446850722,500.0,0.00038772,120]
[393309039,1762446851105,500.0,0.00038772,120]
[393309040,1762446851495,500.0,0.00038772,120]
[393309041,1762446851868,500.0,0.00038772,120]
[393309042,1762446852268,500.0,0.00038772,120]
[393309043,1762446852805,500.0,0.00038772,120]
[393309044,1762446853542,500.0,0.00038772,120]
[393309045,1762446853950,500.0,0.00038772,120]
[393309046,1762446854331,500.0,0.00038772,120]
[393309047,1762446854697,500.0,0.00038772,120]
[393309048,1762446855459,500.0,0.00038772,120]
[393309049,1762446855828,500.0,0.00038772,120]
[393309050,1762446856196,500.0,0.00038772,120]
[393309051,1762446856584,470.64331737,0.00038772,120]
[393309053,1762447166919,500.0,0.00038768,120]
[393309054,1762447167393,500.0,0.00038768,120]
[393309055,1762447167824,500.0,0.00038768,120]
[393309056,1762447168223,500.0,0.00038768,120]
[393309057,1762447168616,500.0,0.00038768,120]
[393309058,1762447169015,592.41798365,0.00038768,120]
[393309062,1762447391676,-999.0,0.00032876,120]
[393309063,1762447391712,-203.79986203,0.00033073,120]
[393309064,1762447391746,-2000.0,0.00033944,120]
[393309065,1762447391775,-203.79986203,0.000349,120]
[393309066,1762447391810,-999.0,0.00035616,120]
[393309067,1762447391846,-157.16,0.00036032,60]
[393309068,1762447391874,-157.16,0.00036132,60]
[393309069,1762447391902,-157.16,0.00036232,60]
[393309070,1762447391929,-157.16,0.00036332,60]
[393309071,1762447391957,-157.16,0.00036432,60]
[393309072,1762447391984,-157.16,0.00036532,60]
[393309073,1762447392012,-157.16,0.00036632,60]
[393309074,1762447392040,-203.79986203,0.00036727,120]
[393309075,1762447392067,-157.16,0.00036732,60]
[393309076,1762447392098,-2000.0,0.0003681,120]
[393309077,1762447392126,-157.16,0.00036832,60]
[393309078,1762447392153,-157.16,0.00036932,60]
[393309079,1762447392181,-150.0,0.00036957,120]
[393309080,1762447392208,-249.05214123,0.00037,120]
[393309081,1762447392236,-157.16,0.00037032,60]
[393309082,1762447392268,-157.18363414,0.00037132,60]
[393309083,1762447392294,-162.50136641,0.000372,120]
[393309084,1762447392321,-162.50136641,0.000372,120]
[393309085,1762447392351,-162.50136641,0.000372,120]
[393309086,1762447392378,-162.50136641,0.000372,120]
[393309087,1762447392408,-500.0,0.00037386,120]
[393309088,1762447392434,-500.0,0.00037386,120]
[393309089,1762447392461,-500.0,0.00037386,120]
[393309090,1762447392489,-500.0,0.00037386,120]
[393309091,1762447392514,-500.0,0.00037386,120]
[393309092,1762447392540,-500.0,0.00037386,120]
[393309093,1762447392567,-500.0,0.00037386,120]
[393309094,1762447392596,-229.0,0.00037386,120]
[393309095,1762447392638,-255.3,0.00038312,120]
[393309096,1762447392667,-518.70597631,0.00038356,120]
[393309097,1762447392693,-999.0,0.00038356,120]
[393309098,1762447392719,-3378.467316,0.00038356,120]
[393309099,1762447392745,-3378.467316,0.00038356,120]
[393309100,1762447392772,-3378.467316,0.00038356,120]
[393309101,1762447392799,-3378.467316,0.00038356,120]
[393309102,1762447392827,-3378.467316,0.00038356,120]
[393309103,1762447392855,-3378.467316,0.00038356,120]
[393309104,1762447392881,-3378.467316,0.00038356,120]
[393309105,1762447392906,-3378.467316,0.00038356,120]
[393309106,1762447392932,-3378.467316,0.00038356,120]
[393309107,1762447392959,-3378.467316,0.00038356,120]
[393309108,1762447392984,-3378.467316,0.00038356,120]
[393309109,1762447393010,-3378.467316,0.00038356,120]
[393309110,1762447393036,-3378.467316,0.00038356,120]
[393309111,1762447393063,-3378.467316,0.00038356,120]
[393309112,1762447393091,-3378.467316,0.00038356,120]
[393309113,1762447393117,-3378.467316,0.00038356,120]
[393309114,1762447393143,-162.943021,0.00038483,120]
[393309115,1762447393168,-151.0,0.00038483,120]
[393309116,1762447393194,-151.0,0.00038483,120]
[393309117,1762447393221,-203.79986203,0.00038553,120]
[393309118,1762447393249,-333.24136416,0.00038678,60]
[393309119,1762447393275,-542.76013005,0.00038678,60]
[393309120,1762447393301,-185.06951884,0.000387,120]
[393309121,1762447393329,-169.40800456,0.000387,120]
[393309122,1762447393355,-268.67349644,0.000387,120]
[393309123,1762447393382,-169.68,0.000387,60]
[393309124,1762447393407,-201.75668364,0.000387,120]
[393309125,1762447393433,-184.81221801,0.000387,120]
[393309126,1762447393460,-1720.4252236,0.000387,120]
[393309127,1762447393501,-403.310558,0.00038768,120]
[393309128,1762447393527,-403.310558,0.00038768,120]
[393309129,1762447393554,-403.310558,0.00038768,120]
[393309130,1762447393582,-151.0,0.00038768,120]
[393309131,1762447393609,-403.31055,0.00038768,120]
[393309132,1762447393636,-151.0,0.00038768,120]
[393309133,1762447393665,-151.0,0.00038768,100]
[393309134,1762447393693,-151.0,0.00038768,120]
[393309135,1762447393719,-151.0,0.00038768,120]
[393309136,1762447393749,-151.0,0.00038768,120]
[393309137,1762447393776,-151.0,0.00038768,120]
[393309138,1762447393802,-151.0,0.00038768,120]
[393309139,1762447393831,-151.0,0.00038768,120]
[393309140,1762447393858,-312.495954,0.00038768,120]
[393309141,1762447393885,-312.495954,0.00038768,120]
[393309142,1762447393914,-312.495954,0.00038768,120]
[393309143,1762447393942,-312.495954,0.00038768,120]
[393309144,1762447393968,-151.0,0.00038768,120]
[393309145,1762447393994,-151.0,0.00038768,120]
[393309146,1762447394023,-151.0,0.00038768,120]
[393309147,1762447394050,-151.0,0.00038768,120]
[393309148,1762447394078,-156.00383,0.00038768,120]
[393309149,1762447394108,-156.00383,0.00038768,120]
[393309150,1762447394140,-156.00383,0.00038768,120]
[393309151,1762447394169,-156.00383,0.00038768,120]
[393309152,1762447394197,-180.66804058,0.00038772,120]
[393309153,1762447394226,-364.572184,0.00038779,120]
[393309154,1762447394254,-364.572184,0.00038779,120]
[393309155,1762447394281,-364.572184,0.00038779,120]
[393309156,1762447394457,-151.0,0.00038779,120]
[393309157,1762447394488,-364.572176,0.00038779,120]
[393309158,1762447394516,-151.0,0.00038779,120]
[393309159,1762447394545,-827.165246,0.00038779,120]
[393309160,1762447394572,-151.0,0.00038779,120]
[393309161,1762447394603,-827.165246,0.00038779,120]
[393309162,1762447394631,-827.165246,0.00038779,120]
[393309163,1762447394660,-827.165254,0.00038779,120]
[393309164,1762447394688,-3378.467316,0.00038779,120]
[393309165,1762447394717,-3378.467316,0.00038779,120]
[393309166,1762447394745,-3378.467316,0.00038779,120]
[393309167,1762447394772,-3378.467313,0.00038779,120]
[393309168,1762447394800,-150.0,0.00039217,120]
[393309169,1762447394828,-163.0,0.00039374,120]
[393309170,1762447394858,-2000.0,0.00039676,120]
[393309171,1762447394886,-169.40800456,0.000398,120]
[393309172,1762447394913,-268.67349644,0.000398,120]
[393309173,1762447394940,-201.75668364,0.000398,120]
[393309174,1762447394967,-184.81221801,0.000398,120]
[393309175,1762447394998,-1720.4252236,0.000398,120]
[393309176,1762447395028,-192.19,0.0004,120]
[393309177,1762447395059,-1089.54,0.0004,120]
[393309178,1762447395091,-1168.58,0.0004,120]
[393309179,1762447395118,-273.7,0.0004,120]
[393309180,1762447395145,-2181.94,0.0004,120]
[393309181,1762447395173,-379.19,0.0004,120]
[393309182,1762447395201,-542.98989312,0.0004,120]
[393309183,1762447395229,-542.98989312,0.0004,120]
[393309184,1762447395256,-2000.0,0.0004,120]
[393309185,1762447395284,-2457.76612287,0.0004,60]
[393309186,1762447395313,-150.0,0.00040225,120]
[393309187,1762447395340,-150.0,0.00040286,120]
[393309188,1762447395367,-203.79986203,0.00040379,120]
[393309189,1762447395394,-150.0,0.00040811,120]
[393309190,1762447395421,-169.40800456,0.00041,120]
[393309191,1762447395449,-268.67349644,0.00041,120]
[393309192,1762447395475,-674.31,0.00041,120]
[393309193,1762447395504,-1720.4252236,0.00041,120]
[393309194,1762447395531,-999.0,0.00041095,120]
[393309195,1762447395560,-150.0,0.00041248,120]
[393309196,1762447395595,-1456.98,0.00042062,120]
[393309197,1762447395626,-203.79986203,0.00042206,120]
[393309198,1762447395660,-150.0,0.00042217,120]
[393309199,1762447395690,-169.40800456,0.000423,120]
[393309200,1762447395721,-268.67349644,0.000423,120]
[393309201,1762447395751,-1720.4252236,0.000423,120]
[393309202,1762447395778,-2000.0,0.00042542,120]
[393309203,1762447395804,-200.0,0.00042798,120]
[393309204,1762447395831,-150.0,0.00042995,120]
[393309205,1762447395862,-203.8,0.00043014,120]
[393309206,1762447395890,-150.0,0.00043448,120]
[393309207,1762447395916,-268.67349644,0.000435,120]
[393309208,1762447395944,-1720.4252236,0.000435,120]
[393309209,1762447395971,-1181.66204575,0.00043562,120]
[393309210,1762447395999,-999.0,0.00043835,120]
[393309211,1762447396025,-271.6825,0.00043835,120]
[393309212,1762447396052,-151.0,0.00044,120]
[393309213,1762447396079,-152.0,0.00044,120]
[393309214,1762447396110,-2970.99858137,0.00044,120]
[393309215,1762447396135,-1246.21,0.00044,120]
[393309216,1762447396161,-203.79986203,0.00044032,120]
[393309217,1762447396188,-161.48885594,0.00044383,120]
[393309218,1762447396214,-166.19981255,0.00044383,120]
[393309219,1762447396239,-172.1718932,0.00044383,120]
[393309220,1762447396266,-543.365,0.00044794,120]
[393309221,1762447396295,-152.0,0.000449,120]
[393309222,1762447396324,-3530.04,0.00045,120]
[393309223,1762447396357,-894.52,0.00045,120]
[393309224,1762447396385,-151.0,0.000453,120]
[393309225,1762447396412,-2000.0,0.00045408,120]
[393309226,1762447396439,-300.0,0.0004562,120]
[393309227,1762447396468,-509.06,0.000457,90]
[393309228,1762447396497,-815.0475,0.00045753,120]
[393309229,1762447396525,-152.0,0.000458,120]
[393309230,1762447396552,-168.0,0.00046,90]
[393309231,1762447396586,-2401.00396764,0.00046189,60]
[393309232,1762447396615,-999.0,0.00046575,120]
[393309233,1762447396641,-151.0,0.000466,120]
[393309234,1762447396671,-161.95035977,0.0004668,90]
[393309235,1762447396699,-1086.73,0.00046712,120]
[393309236,1762447396726,-152.0,0.000468,120]
[393309237,1762447396755,-1000.0,0.00047397,60]
[393309238,1762447396785,-1358.4125,0.00047671,120]
[393309239,1762447396814,-500.0,0.00047671,60]
[393309240,1762447396843,-1000.0,0.00047671,60]
[393309241,1762447396872,-152.0,0.000477,120]
[393309242,1762447396903,-1000.0,0.00047945,60]
[393309243,1762447396932,-151.0,0.00048,120]
[393309244,1762447396957,-250.0,0.00048,120]
[393309245,1762447396984,-1214.0,0.00048,120]
[393309246,1762447397012,-150.0,0.00048,120]
[393309247,1762447397039,-150.0,0.00048,120]
[393309248,1762447397066,-150.0,0.00048,120]
[393309249,1762447397093,-420.0,0.00048,120]
[393309250,1762447397122,-1000000.0,0.00048,120]
[393309251,1762447397150,-300.0,0.00048,120]
[393309252,1762447397178,-1000.0,0.00048219,60]
[393309253,1762447397206,-2000.0,0.00048274,120]
[393309254,1762447397235,-510.37,0.00048315,120]
[393309255,1762447397263,-1000.0,0.00048493,60]
[393309256,1762447397293,-130000.0,0.000485,120]
[393309257,1762447397321,-1000000.0,0.000485,120]
[393309258,1762447397352,-152.0,0.000486,120]
[393309259,1762447397521,-200.0,0.00048616,120]
[393309260,1762447397549,-1630.095,0.0004863,120]
[393309261,1762447397576,-1000.0,0.00048767,60]
[393309262,1762447397605,-500.0,0.00048767,60]
[393309263,1762447397632,-2000.0,0.0004886,65]
[393309264,1762447397663,-1000000.0,0.00049,120]
[393309265,1762447397692,-1000000.0,0.00049,120]
[393309266,1762447397721,-703473.24692977,0.00049,120]
[393309267,1762447403044,-2000.0,0.0003353,120]
[393309268,1762447403148,-2000.0,0.00042247,120]
[393309269,1762447403187,-300.0,0.00046848,120]
[393309270,1762447403219,-150.0,0.00048,120]
[393309271,1762447403250,-296526.75307023,0.00049,120]
[393309272,1762447403277,-1000000.0,0.00049,120]
[393309273,1762447403304,-500.0,0.00049041,120]
[393309274,1762447403332,-209.0201705,0.00049041,120]
[393309275,1762447403363,-1000.0,0.00049041,60]
[393309276,1762447403392,-1456.98,0.00049257,120]
[393309277,1762447403420,-151.0,0.000493,120]
[393309278,1762447403448,-248.15737342,0.00049315,120]
[393309279,1762447403476,-1000.0,0.00049315,60]
[393309280,1762447403506,-999.0,0.00049315,120]
[393309281,1762447403535,-720.58,0.0004937,60]
[393309282,1762447403564,-720.58,0.0004937,60]
[393309283,1762447403595,-4000.0,0.0004944,62]
[393309284,1762447403624,-1000000.0,0.000495,120]
[393309285,1762447403654,-195000.0,0.000495,120]
[393309286,1762447403685,-152.0,0.000495,120]
[393309287,1762447403714,-1000000.0,0.000495,120]
[393309288,1762447403742,-1901.7775,0.00049589,120]
[393309289,1762447403770,-720.58,0.00049644,60]
[393309290,1762447403797,-720.58,0.00049644,60]
[393309291,1762447403824,-5640.1102374,0.0004986,69]
[393309292,1762447403854,-500.0,0.00049863,60]
[393309293,1762447403881,-1000.0,0.00049863,60]
[393309294,1762447403908,-720.58,0.00049918,60]
[393309295,1762447403934,-720.58,0.00049918,60]
[393309296,1762447403967,-1000000.0,0.0005,120]
[393309297,1762447403994,-480941.72164845,0.0005,120]
[393309298,1762447406862,-200.0,0.00042247,120]
[393309299,1762447406904,-150.0,0.00048,120]
[393309300,1762447406938,-519058.27835155,0.0005,120]
[393309301,1762447406967,-1000000.0,0.0005,120]
[393309302,1762447406994,-1000000.0,0.0005,120]
[393309303,1762447407023,-1000000.0,0.0005,120]
[393309304,1762447407049,-249.999999,0.0005,120]
[393309305,1762447407075,-1000000.0,0.0005,120]
[393309306,1762447407105,-480341.72164945,0.0005,120]
[393309307,1762447410278,-322.648446,0.00038779,120]
[393309308,1762447410329,-519658.27835055,0.0005,120]
[393309309,1762447410364,-3530.04,0.0005,120]
[393309310,1762447410392,-150000.0,0.0005,120]
[393309311,1762447410419,-150.0,0.0005,120]
[393309312,1762447410448,-158.78003826,0.0005,120]
[393309313,1762447410475,-240.34295091,0.0005,90]
[393309314,1762447410503,-894.52,0.0005,120]
[393309315,1762447410531,-150.0,0.0005,120]
[393309316,1762447410557,-152.798462,0.0005,120]
[393309317,1762447410584,-310.063236,0.0005,120]
[393309318,1762447410630,-1000000.0,0.0005,120]
[393309319,1762447410663,-1000000.0,0.0005,120]
[393309320,1762447410699,-1000000.0,0.0005,120]
[393309321,1762447410730,-1000000.0,0.0005,120]
[393309322,1762447410762,-150.0,0.0005,120]
[393309323,1762447410791,-700.0,0.0005,120]
[393309324,1762447410820,-150.0,0.0005,120]
[393309325,1762447410854,-1000.0,0.00050137,60]
[393309326,1762447410886,-720.58,0.00050192,60]
[393309327,1762447410918,-720.58,0.00050192,60]
[393309328,1762447410949,-152.0,0.000504,120]
[393309329,1762447410977,-720.58,0.00050466,60]
[393309330,1762447411003,-720.58,0.00050466,60]
[393309331,1762447411030,-2173.46,0.00050547,120]
[393309332,1762447411056,-151.0,0.000506,120]
[393309333,1762447411088,-720.58,0.0005074,60]
[393309334,1762447411121,-720.58,0.0005074,60]
[393309335,1762447411147,-574.0,0.00050951,120]
[393309336,1762447411173,-1252.408,0.00050951,120]
[393309337,1762447411199,-1596.0,0.00050951,120]
[393309338,1762447411225,-1273.0,0.00050951,120]
[393309339,1762447411251,-812.0,0.00050951,120]
[393309340,1762447411278,-6658.0,0.00050951,120]
[393309341,1762447411304,-2141.0,0.00050951,120]
[393309342,1762447411330,-559.0,0.00050951,120]
[393309343,1762447411360,-1188.0,0.00050951,120]
[393309344,1762447411387,-905.0,0.00050951,120]
[393309345,1762447411416,-150.0,0.00050952,120]
[393309346,1762447411443,-500.0,0.00050959,60]
[393309347,1762447411471,-1000.0,0.00050959,60]
[393309348,1762447411497,-2000.0,0.00050965,120]
[393309349,1762447411524,-200.0,0.00050965,120]
[393309350,1762447411552,-294824.18051628,0.00051,120]
[393309351,1762447413866,-322.648446,0.00038779,120]
[393309352,1762447413897,-151.0,0.00038779,120]
[393309353,1762447413927,-249.996763,0.00038779,120]
[393309354,1762447413974,-150.0,0.00049138,120]
[393309355,1762447414009,-705175.81948372,0.00051,120]
[393309356,1762447414038,-1000000.0,0.00051,120]
[393309357,1762447414066,-1000000.0,0.00051,120]
[393309358,1762447414099,-1000000.0,0.00051,120]
[393309359,1762447414129,-1000000.0,0.00051,120]
[393309360,1762447414156,-293950.53530728,0.00051,120]
[393309361,1762447417252,-249.996763,0.00038779,120]
[393309362,1762447417289,-322.648446,0.00038779,120]
[393309363,1762447417330,-249.996763,0.00038779,120]
[393309364,1762447417372,-322.648454,0.00038779,120]
[393309365,1762447417430,-1615.94036031,0.00050924,120]
[393309366,1762447417466,-1759.00082516,0.00050924,120]
[393309367,1762447417508,-706049.46469272,0.00051,120]
[393309368,1762447417548,-1000000.0,0.00051,120]
[393309369,1762447417585,-1000000.0,0.00051,120]
[393309370,1762447417625,-520.1197786,0.00051,120]
[393309371,1762447417662,-287.207,0.00051009,60]
[393309372,1762447417696,-720.58,0.00051014,60]
[393309373,1762447417736,-720.58,0.00051014,60]
[393309374,1762447417776,-150.0,0.00051033,120]
[393309375,1762447417815,-500.0,0.0005105,60]
[393309376,1762447417861,-1000.0,0.00051233,60]
[393309377,1762447417900,-152.0,0.000513,120]
[393309378,1762447417949,-1633.349,0.00051345,92]
[393309379,1762447417989,-1399159.0,0.000515,120]
[393309380,1762447418025,-2445.1425,0.00051506,120]
[393309381,1762447418063,-151.0,0.000519,120]
[393309382,1762447418109,-881991.32541721,0.00052,120]
[393309383,1762447420149,-249.996767,0.00038779,120]
[393309384,1762447420209,-118008.67458279,0.00052,120]
[393309385,1762447420247,-1000000.0,0.00052,120]
[393309386,1762447420280,-273.0,0.00052,120]
[393309387,1762447420313,-500.0,0.00052003,120]
[393309388,1762447420344,-500.0,0.00052054,120]
[393309389,1762447420383,-150.0,0.00052054,120]
[393309390,1762447420420,-152.49763088,0.00052054,120]
[393309391,1762447420454,-150.0,0.00052054,120]
[393309392,1762447420485,-150.0,0.00052054,120]
[393309393,1762447420517,-150.0,0.00052054,120]
[393309394,1762447420548,-164.26414866,0.00052054,120]
[393309395,1762447420579,-500.0,0.00052054,120]
[393309396,1762447420610,-500.0,0.00052054,120]
[393309397,1762447420639,-173.76888488,0.00052054,120]
[393309398,1762447420674,-500.0,0.00052054,120]
[393309399,1762447420708,-500.0,0.00052054,120]
[393309400,1762447420737,-500.0,0.00052054,120]
[393309401,1762447420765,-500.0,0.00052054,120]
[393309402,1762447420793,-500.0,0.00052054,120]
[393309403,1762447420820,-500.0,0.00052054,120]
[393309404,1762447420851,-500.0,0.00052054,120]
[393309405,1762447420879,-202.3599179,0.00052054,120]
[393309406,1762447420908,-150.0,0.00052054,120]
[393309407,1762447420936,-150.0,0.00052054,120]
[393309408,1762447420964,-205.70681493,0.00052054,120]
[393309409,1762447420993,-500.0,0.00052054,120]
[393309410,1762447421020,-500.0,0.00052054,120]
[393309411,1762447421046,-500.0,0.00052054,120]
[393309412,1762447421072,-500.0,0.00052054,120]
[393309413,1762447421102,-500.0,0.00052054,120]
[393309414,1762447421130,-500.0,0.00052054,120]
[393309415,1762447421157,-500.0,0.00052054,120]
[393309416,1762447421184,-642.18136898,0.00052054,120]
[393309417,1762447421213,-211.60455807,0.00052054,120]
[393309418,1762447421238,-150.0,0.00052054,120]
[393309419,1762447421263,-150.0,0.00052054,120]
[393309420,1762447421287,-150.90925456,0.00052054,120]
[393309421,1762447421313,-500.0,0.00052054,120]
[393309422,1762447421339,-500.0,0.00052054,120]
[393309423,1762447421368,-500.0,0.00052054,120]
[393309424,1762447421395,-646.12757889,0.00052054,120]
[393309425,1762447421421,-150.0,0.00052054,120]
[393309426,1762447421447,-150.0,0.00052054,120]
[393309427,1762447421473,-150.0,0.00052054,120]
[393309428,1762447421498,-200.0,0.00052054,120]
[393309429,1762447421523,-150.0,0.00052054,120]
[393309430,1762447421549,-500.0,0.00052054,120]
[393309431,1762447421574,-500.0,0.00052054,120]
[393309432,1762447421602,-500.0,0.00052054,120]
[393309433,1762447421627,-500.0,0.00052054,120]
[393309434,1762447421656,-500.0,0.00052054,120]